bitfinex-derivatives/quotes_SOLF0:USTF0_20250318
["timestamp","ask_amount","ask_price","bid_price","bid_amount"]
[1742328275999,0.0517608,124.26,124.25,8.0497]
[1742328279700,0.0517608,124.26,124.25,19.44557775]
[1742328282201,0.0517608,124.26,124.25,48.92557775]
[1742328282801,0.0517608,124.26,124.25,37.5297]
[1742328283106,0.0517608,124.26,124.25,8.0497]
[1742328291108,0.0517608,124.26,124.25,13.74764364]
[1742328291314,0.0517608,124.26,124.25,8.0497]
[1742328292012,40.92763855,124.26,124.24,265.58]
[1742328292412,48.97713855,124.26,124.24,265.58]
[1742328293518,48.97713855,124.26,124.24,8.05]
[1742328297414,37.5812608,124.26,124.24,8.05]
[1742328300314,8.0497,124.25,124.23,8.11064182]
[1742328300619,29.5317608,124.26,124.23,0.05994182]
[1742328300918,8.0501,124.25,124.23,0.05994182]
[1742328301115,11.39587775,124.25,124.23,0.05994182]
[1742328301322,8.0516,124.23,124.2,273.5927]
[1742328301513,29.48,124.23,124.2,273.5927]
[1742328301910,37.5314,124.23,124.2,273.5927]
[1742328302315,29.48,124.23,124.2,273.5927]
[1742328302621,29.54190502,124.23,124.2,273.64425195]
[1742328302813,29.54190502,124.23,124.2,276.9874297]
[1742328303016,0.06190502,124.23,124.22,11.39587775]
[1742328303915,0.06190502,124.23,124.22,19.44747775]
[1742328306114,0.06190502,124.23,124.22,8.0516]
[1742328306518,0.06190502,124.23,124.21,8.0519]
[1742328306918,0.06190502,124.23,124.22,8.0516]
[1742328308316,0.06190502,124.23,124.22,19.44747775]
[1742328310219,0.06190502,124.23,124.22,48.92747775]
[1742328311223,29.48,124.28,124.27,8.0484]
[1742328311426,11.39587775,124.29,124.27,8.0484]
[1742328311622,29.48,124.28,124.27,8.0484]
[1742328312218,11.39587775,124.29,124.27,8.0484]
[1742328312422,29.48,124.28,124.27,8.0484]
[1742328313119,29.48,124.28,124.26,8.1066701]
[1742328313526,40.87587775,124.28,124.26,8.1066701]
[1742328314025,40.87587775,124.28,124.24,8.05]
[1742328314227,11.39587775,124.25,124.2,306.41587775]
[1742328314424,40.87587775,124.24,124.2,265.54]
[1742328314822,40.87587775,124.24,124.22,8.0512]
[1742328315027,8.0513,124.23,124.19,11.39587775]
[1742328315230,8.0513,124.23,124.22,0.05322658]
[1742328315731,48.98013718,124.24,124.22,0.05322658]
[1742328316720,8.051,124.23,124.22,0.05322658]
[1742328318232,48.98003718,124.24,124.22,0.05322658]
[1742328321530,8.051,124.23,124.22,0.05322658]
[1742328324035,48.98003718,124.24,124.22,8.10482658]
[1742328325129,40.92943718,124.24,124.22,8.10482658]
[1742328325330,40.92943718,124.24,124.22,0.05322658]
[1742328325728,48.98043718,124.24,124.22,0.05322658]
[1742328325934,40.92943718,124.24,124.22,0.05322658]
[1742328326234,11.39587775,124.23,124.22,0.05322658]
[1742328326831,48.98003718,124.24,124.22,8.10482658]
[1742328328941,48.98003718,124.24,124.22,0.05322658]
[1742328329239,8.051,124.23,124.22,0.05322658]
[1742328338953,19.44687775,124.23,124.22,0.05322658]
[1742328350156,19.44687775,124.23,124.22,2.658e-05]
[1742328351049,8.0539,124.19,124.17,8.0545]
[1742328351245,29.46,124.19,124.16,2.0236]
[1742328351649,8.0544,124.18,124.15,11.39587775]
[1742328351853,29.46,124.19,124.15,11.39587775]
[1742328352151,37.5139,124.19,124.15,11.39587775]
[1742328352457,0.05571257,124.18,124.16,0.05321371]
[1742328353053,0.05571257,124.18,124.17,8.0546]
[1742328353454,8.10991257,124.18,124.16,8.10841371]
[1742328353958,0.05571257,124.18,124.16,0.05321371]
[1742328354157,0.05571257,124.18,124.17,8.0549]
[1742328361170,372.46977775,124.26,124.17,48.91587775]
[1742328361461,29.46,124.25,124.21,11.39587775]
[1742328362170,11.39587775,124.24,124.19,277.09587775]
[1742328362362,19.50273722,124.24,124.22,0.06034349]
[1742328362559,11.45203722,124.24,124.22,0.06034349]
[1742328362867,11.39587775,124.23,124.22,0.06034349]
[1742328363059,19.44687775,124.23,124.22,0.06034349]
[1742328363259,11.39587775,124.23,124.17,2.1703]
[1742328363464,11.39587775,124.2,124.15,306.53587775]
[1742328363660,29.46,124.19,124.15,277.07587775]
[1742328363866,29.46,124.19,124.17,8.0546]
[1742328364455,29.52165734,124.19,124.17,8.11606593]
[1742328366167,29.52165734,124.19,124.18,8.0542]
[1742328366662,29.52165734,124.19,124.17,8.11596593]
[1742328366870,29.52165734,124.19,124.17,0.06146593]
[1742328366871,40.91753509,124.19,124.17,0.06146593]
[1742328368272,40.91753509,124.19,124.17,8.11586593]
[1742328368463,40.91753509,124.19,124.17,0.06146593]
[1742328368662,29.52165734,124.19,124.17,0.06146593]
[1742328370065,37.57525734,124.19,124.17,0.06146593]
[1742328370266,29.52165734,124.19,124.17,0.06146593]
[1742328370667,37.57535734,124.19,124.17,8.11596593]
[1742328370867,29.52165734,124.19,124.17,8.11596593]
[1742328371671,40.91753509,124.19,124.17,8.11596593]
[1742328372074,48.97123509,124.19,124.17,8.11596593]
[1742328372765,19.45007775,124.18,124.17,0.06146593]
[1742328373167,11.39587775,124.18,124.17,0.06146593]
[1742328373970,19.45007775,124.18,124.17,0.06146593]
[1742328374168,11.39587775,124.18,124.17,0.06146593]
[1742328376164,40.85587775,124.18,124.17,0.06146593]
[1742328377674,48.91007775,124.18,124.17,0.06146593]
[1742328381968,8.0564,124.15,124.13,2.0455]
[1742328382171,29.46,124.15,124.13,2.0455]
[1742328382369,29.46,124.15,124.12,265.72]
[1742328382569,8.0575,124.14,124.12,265.72]
[1742328383078,8.11781819,124.14,124.12,265.78192109]
[1742328383275,8.0575,124.13,124.12,265.78192109]
[1742328383477,8.0575,124.13,124.12,0.06192109]
[1742328383979,0.06031819,124.14,124.12,0.06192109]
[1742328384779,0.06031819,124.14,124.12,8.11962109]
[1742328387478,0.06031819,124.14,124.13,8.0575]
[1742328392494,29.46,124.16,124.15,8.0562]
[1742328396292,29.46,124.16,124.14,8.0565]
[1742328396894,29.46,124.16,124.12,11.45779884]
[1742328397095,37.5159,124.16,124.13,8.0569]
[1742328397296,40.85587775,124.16,124.13,8.0569]
[1742328397802,8.0565,124.15,124.13,8.0569]
[1742328398000,8.0565,124.15,124.12,8.11982109]
[1742328398201,11.39587775,124.15,124.12,8.11982109]
[1742328398402,8.0571,124.14,124.12,8.11982109]
[1742328398804,8.11508371,124.14,124.12,8.11982109]
[1742328399303,37.5175,124.13,124.12,0.06192109]
[1742328401502,48.91337775,124.13,124.12,0.06192109]
[1742328403008,37.5175,124.13,124.12,0.06192109]
[1742328403908,48.91337775,124.13,124.12,0.06192109]
[1742328407213,37.5175,124.13,124.12,0.06192109]
[1742328407410,48.91337775,124.13,124.12,0.06192109]
[1742328407607,8.06,124.1,124.08,265.76]
[1742328407804,37.52,124.1,124.08,265.76]
[1742328408812,37.58080018,124.1,124.08,265.81534338]
[1742328409202,37.58080018,124.1,124.08,273.87604338]
[1742328409911,8.0601,124.09,124.08,0.05534338]
[1742328410111,40.91667793,124.1,124.08,0.05534338]
[1742328410414,29.52080018,124.1,124.08,0.05534338]
[1742328411010,29.52080018,124.1,124.08,8.11574338]
[1742328411713,29.52080018,124.1,124.09,8.0601]
[1742328412113,0.06080018,124.1,124.09,8.0601]
[1742328414916,0.06080018,124.1,124.09,19.45597775]
[1742328415517,11.39587775,124.14,124.09,11.39587775]
[1742328415518,29.46,124.14,124.09,11.39587775]
[1742328415717,29.46,124.14,124.11,11.39587775]
[1742328415914,21.60227775,124.18,124.13,11.39587775]
[1742328416114,29.46,124.17,124.14,11.39587775]
[1742328416419,2.1519,124.18,124.15,11.39587775]
[1742328416615,0.05537809,124.18,124.17,8.0543]
[1742328424422,0.05537809,124.18,124.17,19.45017775]
[1742328424820,29.44,124.21,124.2,8.0529]
[1742328425118,21.59907775,124.23,124.2,8.0529]
[1742328425323,29.44,124.21,124.2,8.0529]
[1742328426626,29.44,124.21,124.19,0.057529]
[1742328427327,37.4923,124.21,124.19,0.057529]
[1742328428929,29.44,124.21,124.19,0.057529]
[1742328429228,8.1072103,124.22,124.19,11.45340675]
[1742328429229,0.0554103,124.22,124.19,11.45340675]
[1742328429424,0.0554103,124.22,124.21,8.0523]
[1742328429824,0.0554103,124.22,124.19,11.45340675]
[1742328430034,0.0554103,124.22,124.2,8.0526]
[1742328430231,0.0554103,124.22,124.19,0.057529]
[1742328430732,8.1075103,124.22,124.19,8.110729]
[1742328430930,0.0554103,124.22,124.19,8.110729]
[1742328431234,0.0554103,124.22,124.19,0.057529]
[1742328431532,8.0527,124.21,124.19,0.057529]
[1742328432029,0.0554103,124.22,124.19,0.057529]
[1742328432328,8.0529,124.2,124.19,0.057529]
[1742328432929,37.4929,124.2,124.19,0.057529]
[1742328433131,48.88877775,124.2,124.19,0.057529]
[1742328434124,8.0548,124.18,124.16,265.8]
[1742328434332,19.45067775,124.18,124.15,8.0558]
[1742328435232,19.50196151,124.18,124.15,8.10830887]
[1742328435836,19.50196151,124.18,124.16,8.0555]
[1742328437534,8.10608376,124.18,124.16,8.0555]
[1742328437937,8.10608376,124.18,124.15,8.10830887]
[1742328438131,37.4949,124.17,124.15,0.05250887]
[1742328438326,11.39587775,124.16,124.15,0.05250887]
[1742328439635,19.45137775,124.16,124.15,0.05250887]
[1742328441129,29.44,124.17,124.15,0.05250887]
[1742328441331,29.49128376,124.18,124.15,11.44838662]
[1742328442034,29.49128376,124.18,124.16,8.0555]
[1742328442426,29.49128376,124.18,124.15,11.44838662]
[1742328442627,29.49128376,124.18,124.16,8.0555]
[1742328443331,29.49128376,124.18,124.17,8.0549]
[1742328443635,29.49128376,124.18,124.15,11.44838662]
[1742328445039,29.49128376,124.18,124.16,8.0549]
[1742328445733,37.54558376,124.18,124.16,8.0549]
[1742328446843,29.49128376,124.18,124.16,8.0549]
[1742328447950,37.54558376,124.18,124.16,8.0549]
[1742328449641,37.54558376,124.18,124.15,8.10830887]
[1742328449841,8.055,124.17,124.15,8.10830887]
[1742328450347,8.0555,124.16,124.15,0.05250887]
[1742328454247,19.45137775,124.16,124.15,0.05250887]
[1742328458550,11.39587775,124.16,124.15,0.05250887]
[1742328458747,25.93597775,124.17,124.15,0.05250887]
[1742328459556,8.0555,124.16,124.15,0.05250887]
[1742328459951,19.45137775,124.16,124.15,0.05250887]
[1742328460251,11.39587775,124.16,124.15,0.05250887]
[1742328461256,19.45137775,124.16,124.15,0.05250887]
[1742328461553,11.39587775,124.16,124.15,0.05250887]
[1742328462255,17.88077775,124.17,124.15,0.05250887]
[1742328462554,8.0555,124.16,124.15,0.05250887]
[1742328462756,17.88077775,124.17,124.15,0.05250887]
[1742328463354,8.0555,124.16,124.15,0.05250887]
[1742328463857,17.88077775,124.17,124.15,0.05250887]
[1742328464452,25.93597775,124.17,124.15,8.10860887]
[1742328464648,25.93597775,124.17,124.15,0.05250887]
[1742328467261,29.42,124.16,124.15,0.05250887]
[1742328468359,29.42,124.16,124.15,8.10870887]
[1742328469465,29.42,124.16,124.15,0.05250887]
[1742328470263,29.42,124.16,124.15,8.10870887]
[1742328470764,29.47128376,124.18,124.15,0.05250887]
[1742328470963,8.376e-05,124.18,124.17,19.45077775]
[1742328472559,8.376e-05,124.18,124.17,11.39587775]
[1742328472760,8.376e-05,124.18,124.16,13.38777775]
[1742328473064,8.376e-05,124.18,124.16,11.39587775]
[1742328474369,8.376e-05,124.18,124.16,19.45137775]
[1742328475463,8.376e-05,124.18,124.16,11.39587775]
[1742328476466,8.376e-05,124.18,124.16,19.45127775]
[1742328477464,8.376e-05,124.18,124.16,11.39587775]
[1742328478469,8.376e-05,124.18,124.15,43.01858662]
[1742328478760,8.05458376,124.18,124.15,43.01858662]
[1742328479369,11.39596151,124.18,124.15,0.05250887]
[1742328480563,8.0553,124.17,124.15,0.05250887]
[1742328481073,8.376e-05,124.18,124.17,8.0549]
[1742328481367,8.376e-05,124.18,124.17,11.39587775]
[1742328481974,8.376e-05,124.18,124.16,11.39587775]
[1742328482366,8.376e-05,124.18,124.16,19.45087775]
[1742328483274,8.376e-05,124.18,124.17,8.0549]
[1742328488074,8.376e-05,124.18,124.17,16.1149]
[1742328489674,15.1096192,124.3,124.25,8.0497]
[1742328489675,29.4,124.26,124.25,8.0497]
[1742328490668,29.4,124.26,124.24,8.0499]
[1742328490869,29.4,124.26,124.24,8.10566211]
[1742328491069,29.45143857,124.26,124.24,8.10566211]
[1742328491266,0.05143857,124.26,124.24,8.10566211]
[1742328491470,29.45143857,124.26,124.24,8.10566211]
[1742328491673,37.50063857,124.26,124.24,0.05576211]
[1742328492172,8.10063857,124.26,124.24,0.05576211]
[1742328492371,37.50063857,124.26,124.24,0.05576211]
[1742328493278,8.0497,124.25,124.24,0.05576211]
[1742328494980,29.45143857,124.26,124.24,0.05576211]
[1742328495578,0.05143857,124.26,124.24,0.05576211]
[1742328495877,0.05143857,124.26,124.24,17.88343959]
[1742328496189,0.05143857,124.26,124.25,8.0497]
[1742328498782,3.857e-05,124.26,124.25,8.0497]
[1742328498978,3.857e-05,124.26,124.25,16.0897]
[1742328499591,107.4650382,124.34,124.31,8.0454]
[1742328499880,89.63736072,124.34,124.27,312.82767748]
[1742328500068,89.63736072,124.34,124.31,8.0455]
[1742328500877,89.69728291,124.34,124.31,8.1023311]
[1742328501278,89.69728291,124.34,124.31,0.0568311]
[1742328502274,8.0449,124.33,124.31,0.0568311]
[1742328502480,89.69728291,124.34,124.31,0.0568311]
[1742328502677,17.82767748,124.32,124.31,0.0568311]
[1742328503070,25.87287748,124.32,124.31,0.0568311]
[1742328503278,17.82767748,124.32,124.27,265.62]
[1742328503576,8.0471,124.29,124.27,265.62]
[1742328503977,17.82767748,124.32,124.27,265.62]
[1742328504373,8.0469,124.3,124.27,265.62]
[1742328504576,8.0469,124.3,124.28,0.05358996]
[1742328504973,8.0471,124.29,124.28,0.05358996]
[1742328507979,8.0498,124.25,124.23,265.52]
[1742328508285,29.38,124.27,124.23,265.52]
[1742328508487,8.0503,124.24,124.23,265.52]
[1742328508787,29.38,124.26,124.23,265.52]
[1742328509179,8.0502,124.25,124.23,265.57665981]
[1742328509984,0.05908572,124.26,124.24,8.0503]
[1742328510192,0.05908572,124.26,124.23,265.57665981]
[1742328510791,0.05908572,124.26,124.23,294.95665981]
[1742328510991,0.05908572,124.26,124.25,8.91383874]
[1742328511192,0.05908572,124.26,124.25,16.96353874]
[1742328512786,0.05908572,124.26,124.25,8.0497]
[1742328520010,8.572e-05,124.26,124.25,16.96353874]
[1742328520810,33.587,124.33,124.31,8.0453]
[1742328521307,33.587,124.33,124.28,29.38]
[1742328521504,33.587,124.33,124.29,8.0465]
[1742328521706,8.0461,124.31,124.26,29.38]
[1742328521905,8.0461,124.31,124.28,8.0474]
[1742328522107,0.05792959,124.3,124.28,8.0474]
[1742328524511,0.05792959,124.3,124.27,0.06165696]
[1742328524712,29.36,124.29,124.27,0.06165696]
[1742328525011,29.36,124.29,124.28,8.0477]
[1742328525206,29.36,124.29,124.27,0.06165696]
[1742328525909,29.36,124.29,124.27,8.10975696]
[1742328526848,29.36,124.29,124.28,8.0477]
[1742328529214,0.05792959,124.3,124.28,8.0477]
[1742328531220,0.05792959,124.3,124.27,0.06165696]
[1742328531921,0.05792959,124.3,124.28,8.0477]
[1742328534124,0.05792959,124.3,124.27,0.06165696]
[1742328534822,0.05792959,124.3,124.28,8.0473]
[1742328537926,0.05792959,124.3,124.27,0.06165696]
[1742328538122,0.05792959,124.3,124.27,11.45416784]
[1742328538424,0.05792959,124.3,124.27,0.06165696]
[1742328538827,0.05792959,124.3,124.29,11.39251088]
[1742328539127,0.05792959,124.3,124.29,19.43961088]
[1742328541724,89.63736072,124.34,124.33,8.0445]
[1742328542323,89.63736072,124.34,124.33,19.43701088]
[1742328542914,89.63736072,124.34,124.33,8.0445]
[1742328543121,89.63736072,124.34,124.32,8.10468557]
[1742328543426,89.63736072,124.34,124.32,0.05978557]
[1742328544028,97.68156072,124.34,124.32,0.05978557]
[1742328544224,109.0740716,124.34,124.32,0.05978557]
[1742328544522,101.0298716,124.34,124.32,0.05978557]
[1742328544827,11.39251088,124.33,124.27,265.46]
[1742328545016,11.39251088,124.32,124.27,265.46]
[1742328545221,8.0462,124.31,124.27,265.46]
[1742328545526,8.0462,124.31,124.28,8.0475]
[1742328546228,8.10417395,124.31,124.28,8.10635719]
[1742328546625,8.0465,124.3,124.28,0.05885719]
[1742328546829,37.4065,124.3,124.28,0.05885719]
[1742328548224,29.36,124.3,124.28,8.10645719]
[1742328548419,29.36,124.3,124.28,0.05885719]
[1742328548624,0.05797395,124.31,124.28,0.05885719]
[1742328548832,8.10377395,124.31,124.28,8.10625719]
[1742328549228,0.05797395,124.31,124.28,0.05885719]
[1742328549526,8.0465,124.3,124.28,0.05885719]
[1742328550027,8.0465,124.3,124.28,8.10655719]
[1742328552033,8.10407395,124.31,124.28,8.10655719]
[1742328553132,8.10407395,124.31,124.29,8.047]
[1742328553432,0.05797395,124.31,124.29,8.047]
[1742328554134,8.10387395,124.31,124.29,8.047]
[1742328554528,0.05797395,124.31,124.29,8.047]
[1742328555129,8.10427395,124.31,124.28,8.10625719]
[1742328555332,0.05797395,124.31,124.28,0.05885719]
[1742328555534,2.25487395,124.31,124.28,0.05885719]
[1742328555735,10.30117395,124.31,124.28,0.05885719]
[1742328555937,2.25487395,124.31,124.28,0.05885719]
[1742328556637,2.25487395,124.31,124.28,8.10645719]
[1742328557732,10.30097395,124.31,124.28,8.10645719]
[1742328558739,2.25487395,124.31,124.28,8.10645719]
[1742328559038,2.25487395,124.31,124.29,8.0471]
[1742328560038,10.30067395,124.31,124.28,8.10625719]
[1742328561738,10.30067395,124.31,124.29,8.0471]
[1742328562441,8.0465,124.3,124.28,8.10645719]
[1742328562635,2.25487395,124.31,124.28,0.05885719]
[1742328563037,8.0465,124.3,124.28,0.05885719]
[1742328563240,29.36,124.29,124.28,0.05885719]
[1742328565242,29.36,124.29,124.28,8.10655719]
[1742328566145,29.36,124.29,124.28,0.05885719]
[1742328567147,40.754537,124.29,124.28,0.05885719]
[1742328567842,29.36,124.29,124.28,8.10655719]
[1742328569249,29.36,124.29,124.28,0.05885719]
[1742328570552,37.4071,124.29,124.28,0.05885719]
[1742328571450,48.801637,124.29,124.28,0.05885719]
[1742328572549,8.049,124.26,124.25,265.48]
[1742328572754,8.049,124.26,124.24,8.0499]
[1742328573053,29.36,124.26,124.22,2.1261]
[1742328573450,40.754537,124.26,124.22,2.1261]
[1742328573745,0.06107529,124.25,124.23,0.05446195]
[1742328574152,0.06107529,124.25,124.24,8.0503]
[1742328575452,0.06107529,124.25,124.23,8.10516195]
[1742328575660,0.06107529,124.25,124.23,0.05446195]
[1742328576049,0.06107529,124.25,124.23,8.10506195]
[1742328576253,0.06107529,124.25,124.23,0.05446195]
[1742328576653,0.06107529,124.25,124.23,8.10506195]
[1742328579757,0.06107529,124.25,124.23,0.05446195]
[1742328580162,8.11097529,124.25,124.23,0.05446195]
[1742328580662,0.06107529,124.25,124.23,0.05446195]
[1742328580864,0.06107529,124.25,124.23,8.10496195]
[1742328581162,0.06107529,124.25,124.23,0.05446195]
[1742328582363,0.06107529,124.25,124.24,8.0503]
[1742328591368,0.06107529,124.25,124.23,0.05446195]
[1742328591869,8.11117529,124.25,124.23,0.05446195]
[1742328593070,19.444837,124.24,124.23,0.05446195]
[1742328595068,11.394537,124.24,124.23,0.05446195]
[1742328595267,11.394537,124.24,124.23,8.10546195]
[1742328596169,11.394537,124.24,124.23,0.05446195]
[1742328597366,40.754537,124.24,124.23,0.05446195]
[1742328597770,48.804837,124.24,124.23,0.05446195]
[1742328599060,29.36,124.24,124.23,0.05446195]
[1742328599866,29.36,124.24,124.23,8.10546195]
[1742328603470,29.42107529,124.25,124.23,8.10546195]
[1742328607077,29.42107529,124.25,124.24,8.0503]
[1742328611783,37.47087529,124.25,124.23,0.05446195]
[1742328611981,29.42107529,124.25,124.23,0.05446195]
[1742328612385,19.444837,124.24,124.23,0.05446195]
[1742328615981,19.447037,124.21,124.17,276.7444368]
[1742328616184,48.807037,124.21,124.17,276.7444368]
[1742328616382,48.807037,124.21,124.18,8.0536]
[1742328616984,48.8688812,124.21,124.18,8.1075888]
[1742328617484,11.394537,124.19,124.18,0.0539888]
[1742328617691,40.754537,124.19,124.18,0.0539888]
[1742328618790,48.808137,124.19,124.18,0.0539888]
[1742328619194,40.754537,124.19,124.18,0.0539888]
[1742328621492,48.808137,124.19,124.18,0.0539888]
[1742328627297,19.450637,124.16,124.13,265.64]
[1742328627500,48.810637,124.16,124.13,265.64]
[1742328627994,48.810637,124.16,124.14,8.0565]
[1742328628198,48.810637,124.16,124.13,265.64]
[1742328628399,48.86269176,124.16,124.14,0.05694841]
[1742328628999,48.86269176,124.16,124.14,8.11374841]
[1742328629599,40.80659176,124.16,124.14,8.11374841]
[1742328630198,11.394537,124.15,124.14,0.05694841]
[1742328630390,11.394537,124.15,124.09,265.74]
[1742328630699,8.0585,124.12,124.09,273.7997]
[1742328630899,19.453037,124.12,124.09,273.7997]
[1742328631097,11.394537,124.12,124.09,273.7997]
[1742328631602,37.4188,124.11,124.09,8.11613737]
[1742328631898,40.754537,124.11,124.09,0.05643737]
[1742328632402,8.0594,124.1,124.09,0.05643737]
[1742328633703,19.453937,124.1,124.09,0.05643737]
[1742328637897,8.0615,124.07,124.01,265.82]
[1742328638099,40.774537,124.07,124.02,13.532237]
[1742328638403,11.394537,124.06,124.03,8.0636]
[1742328638603,19.457037,124.06,124.01,277.214537]
[1742328638902,29.38,124.05,124.01,277.214537]
[1742328639097,29.43305777,124.05,124.02,0.05844933]
[1742328639305,37.49605777,124.05,124.02,0.05844933]
[1742328639696,48.89059477,124.05,124.02,0.05844933]
[1742328641007,8.0635,124.04,124.02,0.05844933]
[1742328641506,19.458037,124.04,124.02,0.05844933]
[1742328642006,8.064,124.03,124.02,0.05844933]
[1742328642607,19.458537,124.03,124.02,0.05844933]
[1742328642903,48.838537,124.03,124.02,0.05844933]
[1742328646209,40.774537,124.03,124.02,0.05844933]
[1742328648112,48.838537,124.03,124.02,0.05844933]
[1742328653507,29.38,124.03,124.02,0.05844933]
[1742328654106,29.38,124.03,124.02,8.12304933]
[1742328655608,40.774537,124.03,124.02,8.12304933]
[1742328655810,40.774537,124.03,124.02,0.05844933]
[1742328657317,48.838537,124.03,124.02,0.05844933]
[1742328658218,40.774537,124.03,124.02,0.05844933]
[1742328660222,40.774537,124.03,124.02,8.12304933]
[1742328660223,29.38,124.03,124.02,8.12304933]
[1742328660413,40.82759477,124.05,124.02,0.05844933]
[1742328660818,40.82759477,124.05,124.03,8.0636]
[1742328661119,40.82759477,124.05,124.02,0.05844933]
[1742328661311,40.82759477,124.05,124.02,8.12274933]
[1742328661312,11.394537,124.04,124.02,8.12274933]
[1742328662218,11.394537,124.04,124.02,0.05844933]
[1742328662414,11.394537,124.03,124.02,0.05844933]
[1742328662817,19.458537,124.03,124.02,0.05844933]
[1742328664623,48.838537,124.03,124.02,0.05844933]
[1742328673728,40.774537,124.03,124.02,0.05844933]
[1742328673929,11.394537,124.04,124.02,0.05844933]
[1742328674933,0.05305777,124.05,124.02,0.05844933]
[1742328675228,11.394537,124.04,124.02,0.05844933]
[1742328675934,11.394537,124.04,124.03,8.0637]
[1742328684841,11.394537,124.04,124.02,8.12274933]
[1742328686237,11.394537,124.04,124.03,8.064]
[1742328695847,40.82759477,124.05,124.03,8.064]
[1742328696048,48.89029477,124.05,124.03,8.064]
[1742328696545,40.82759477,124.05,124.02,0.05844933]
[1742328697148,40.82759477,124.05,124.03,8.0636]
[1742328697650,48.89029477,124.05,124.03,8.0636]
[1742328699051,40.82759477,124.05,124.03,8.064]
[1742328699952,48.89029477,124.05,124.03,8.064]
[1742328700752,48.89029477,124.05,124.02,8.12274933]
[1742328701953,11.394537,124.03,124.02,0.05844933]
[1742328702853,11.394537,124.03,124.02,8.12304933]
[1742328717960,0.05305777,124.05,124.02,0.05844933]
[1742328718650,0.05305777,124.05,124.04,8.0633]
[1742328719056,0.05305777,124.05,124.04,19.457837]
[1742328719260,40.754537,124.09,124.07,8.061]
[1742328719950,11.394537,124.08,124.06,8.0617]
[1742328720457,11.45457345,124.08,124.06,8.11647292]
[1742328721560,11.45457345,124.08,124.07,8.0614]
[1742328722364,0.06003645,124.08,124.07,8.0614]
[1742328723058,11.45457345,124.08,124.06,0.05477292]
[1742328723262,11.394537,124.07,124.06,0.05477292]
[1742328723662,19.455937,124.07,124.06,0.05477292]
[1742328724260,48.815937,124.07,124.06,0.05477292]
[1742328724465,11.394537,124.04,124.02,8.0643]
[1742328725064,11.394537,124.04,124.03,8.064]
[1742328727966,40.81035617,124.05,124.03,8.064]
[1742328729368,48.87325617,124.05,124.02,8.11625476]
[1742328729564,11.394537,124.03,124.02,0.05195476]
[1742328733471,11.394537,124.03,124.02,8.11655476]
[1742328733771,11.394537,124.03,124.02,0.05195476]
[1742328735569,19.458537,124.03,124.02,0.05195476]
[1742328735769,48.818537,124.03,124.02,0.05195476]
[1742328737476,40.754537,124.03,123.97,8.0676]
[1742328737670,11.394537,123.98,123.97,8.0676]
[1742328745474,11.394537,123.98,123.96,0.06070224]
[1742328745675,11.394537,123.97,123.96,0.06070224]
[1742328746280,11.394537,123.97,123.96,8.12920224]
[1742328747971,19.462437,123.97,123.96,0.06070224]
[1742328748478,11.394537,123.97,123.96,0.06070224]
[1742328748681,40.754537,123.98,123.96,0.06070224]
[1742328750080,40.754537,123.98,123.96,8.12890224]
[1742328751377,11.394537,123.97,123.96,8.12890224]
[1742328753984,19.462437,123.97,123.96,0.06070224]
[1742328754988,11.394537,123.97,123.96,0.06070224]
[1742328758997,11.394537,123.97,123.96,8.12920224]
[1742328759198,0.05790897,123.99,123.96,0.06070224]
[1742328759396,40.81244597,123.99,123.96,0.06070224]
[1742328760395,11.45244597,123.99,123.96,0.06070224]
[1742328760599,0.05790897,123.99,123.96,0.06070224]
[1742328760996,0.05790897,123.99,123.98,8.0672]
[1742328771102,0.05790897,123.99,123.97,8.0675]
[1742328771601,0.05790897,123.99,123.96,266.24070224]
[1742328773402,8.12470897,123.99,123.96,266.24070224]
[1742328773596,0.05790897,123.99,123.96,266.24070224]
[1742328773803,0.05790897,123.99,123.98,8.0672]
[1742328800321,0.05790897,123.99,123.98,19.461737]
[1742328802017,8.97e-06,123.99,123.98,48.801737]
[1742328802222,29.34,124.04,124.03,8.0637]
[1742328803516,29.34,124.04,124.02,8.11974338]
[1742328803724,37.4039,124.04,124.02,0.05544338]
[1742328803925,29.34,124.04,124.02,0.05544338]
[1742328804920,8.064,124.03,124.02,0.05544338]
[1742328805626,37.4036,124.04,124.02,0.05544338]
[1742328809321,8.0636,124.04,124.02,0.05544338]
[1742328809525,37.3836,124.04,124.02,8.11994338]
[1742328809918,37.3836,124.04,124.02,0.05544338]
[1742328810823,37.3836,124.04,124.02,8.11994338]